[Event "Titled Tuesday Blitz July 20 2021"]
[White "Karthikeyan, Murali"]
[Black "Aldokhin, Ivan"]
[WhiteFideId "5074452"]
[BlackFideId "24115720"]
[WhiteElo "2564"]
[BlackElo "2306"]
[Result "0-1"]
[Round "06"]
[TimeControl "180+1"]
[Date "2021.07.20"]
[WhiteClock "0:00:01"]
[BlackClock "0:00:03"]

1. d4 {[%clk 0:03:00]}  Nf6 {[%clk 0:02:59]} 2. c4 {[%clk 0:03:00]}  g6 {[%clk 0:03:00]} 3. f3 {[%clk 0:02:58]}  Bg7 {[%clk 0:02:48]} 4. e4 {[%clk 0:02:57]}  O-O {[%clk 0:02:49]} 5. Ne2 {[%clk 0:02:51]}  c6 {[%clk 0:02:48]} 6. Nbc3 {[%clk 0:02:43]}  d5 {[%clk 0:02:48]} 7. cxd5 {[%clk 0:02:43]}  cxd5 {[%clk 0:02:47]} 8. e5 {[%clk 0:02:43]}  Nfd7 {[%clk 0:02:33]} 9. Nxd5 {[%clk 0:02:37]}  Nc6 {[%clk 0:02:32]} 10. Ndc3 {[%clk 0:02:37]}  Nb6 {[%clk 0:02:19]} 11. g3 {[%clk 0:02:31]}  f6 {[%clk 0:02:06]} 12. exf6 {[%clk 0:01:52]}  Bxf6 {[%clk 0:01:55]} 13. Bh6 {[%clk 0:01:50]}  Rf7 {[%clk 0:01:19]} 14. Ne4 {[%clk 0:01:19]}  Bxd4 {[%clk 0:00:50]} 15. Nxd4 {[%clk 0:00:50]}  Qxd4 {[%clk 0:00:49]} 16. Bg2 {[%clk 0:00:47]}  Bf5 {[%clk 0:00:46]} 17. Nf2 {[%clk 0:00:31]}  Qe5+ {[%clk 0:00:36]} 18. Qe2 {[%clk 0:00:31]}  Qxe2+ {[%clk 0:00:31]} 19. Kxe2 {[%clk 0:00:32]}  Nd4+ {[%clk 0:00:31]} 20. Kf1 {[%clk 0:00:33]}  Rc8 {[%clk 0:00:20]} 21. Rd1 {[%clk 0:00:30]}  e5 {[%clk 0:00:20]} 22. f4 {[%clk 0:00:13]}  Rc2 {[%clk 0:00:12]} 23. Nd3 {[%clk 0:00:06]}  Bg4 {[%clk 0:00:10]} 24. Re1 {[%clk 0:00:02]}  Be2+ {[%clk 0:00:07]} 25. Rxe2 {[%clk 0:00:02]}  Nxe2 {[%clk 0:00:08]} 26. Nxe5 {[%clk 0:00:02]}  Rfc7 {[%clk 0:00:05]} 27. Be4 {[%clk 0:00:02]}  Rxb2 {[%clk 0:00:04]} 28. Kf2 {[%clk 0:00:01]}  Nc3+ {[%clk 0:00:04]} 29. Kf3 {[%clk 0:00:01]}  Nxe4 {[%clk 0:00:04]} 30. Kxe4 {[%clk 0:00:02]}  Nc4 {[%clk 0:00:04]} 31. Rd1 {[%clk 0:00:02]}  Nxe5 {[%clk 0:00:04]} 32. Kxe5 {[%clk 0:00:03]}  Rb5+ {[%clk 0:00:03]} 33. Ke4 {[%clk 0:00:02]}  Re7+ {[%clk 0:00:03]} 34. Kf3 {[%clk 0:00:03]}  Kf7 {[%clk 0:00:04]} 35. a4 {[%clk 0:00:01]}  Rb3+ {[%clk 0:00:04]} 36. Kg4 {[%clk 0:00:01]}  Rb4 {[%clk 0:00:04]} 37. a5 {[%clk 0:00:01]}  Ra4 {[%clk 0:00:04]} 38. Rd5 {[%clk 0:00:01]}  a6 {[%clk 0:00:04]} 39. Bg5 {[%clk 0:00:01]}  Rc7 {[%clk 0:00:04]} 40. h4 {[%clk 0:00:01]}  Ke6 {[%clk 0:00:04]} 41. Re5+ {[%clk 0:00:01]}  Kd6 {[%clk 0:00:05]} 42. h5 {[%clk 0:00:02]}  Kc6 {[%clk 0:00:04]} 43. hxg6 {[%clk 0:00:02]}  hxg6 {[%clk 0:00:05]} 44. Re6+ {[%clk 0:00:03]}  Kd5 {[%clk 0:00:05]} 45. Rxg6 {[%clk 0:00:04]}  Ra3 {[%clk 0:00:05]} 46. Bd8 {[%clk 0:00:04]}  Rcc3 {[%clk 0:00:05]} 47. Kf5 {[%clk 0:00:04]}  Rxg3 {[%clk 0:00:05]} 48. Rb6 {[%clk 0:00:05]}  Rxa5 {[%clk 0:00:04]} 49. Rxb7 {[%clk 0:00:05]}  Rb5 {[%clk 0:00:04]} 50. Ra7 {[%clk 0:00:04]}  Kc4+ {[%clk 0:00:05]} 51. Kf6 {[%clk 0:00:04]}  Rh3 {[%clk 0:00:04]} 52. Kg6 {[%clk 0:00:01]}  a5 {[%clk 0:00:03]} 0-1


[Site "https://www.chess.com"]

[Event "Titled Tuesday Blitz July 20 2021"]
[White "Kazakov, Mikhail"]
[Black "Harshavardhan G B"]
[WhiteFideId "14102749"]
[BlackFideId "25059009"]
[WhiteElo "2373"]
[BlackElo "1825"]
[Result "0-1"]
[Round "06"]
[TimeControl "180+1"]
[Date "2021.07.21"]
[WhiteClock "0:00:02"]
[BlackClock "0:00:26"]

1. d4 {[%clk 0:02:59]}  Nf6 {[%clk 0:02:58]} 2. c4 {[%clk 0:02:56]}  g6 {[%clk 0:02:58]} 3. Nc3 {[%clk 0:02:50]}  Bg7 {[%clk 0:02:58]} 4. e4 {[%clk 0:02:49]}  d6 {[%clk 0:02:59]} 5. Be2 {[%clk 0:02:48]}  O-O {[%clk 0:02:59]} 6. Be3 {[%clk 0:02:40]}  e5 {[%clk 0:02:59]} 7. d5 {[%clk 0:02:39]}  a5 {[%clk 0:02:58]} 8. h4 {[%clk 0:02:38]}  h5 {[%clk 0:02:54]} 9. Nh3 {[%clk 0:02:36]}  Ng4 {[%clk 0:02:49]} 10. Bg5 {[%clk 0:02:29]}  f6 {[%clk 0:02:47]} 11. Bd2 {[%clk 0:02:25]}  f5 {[%clk 0:02:46]} 12. Ng5 {[%clk 0:02:23]}  Nf6 {[%clk 0:02:28]} 13. exf5 {[%clk 0:02:20]}  Bxf5 {[%clk 0:02:28]} 14. Bf3 {[%clk 0:02:13]}  Na6 {[%clk 0:02:24]} 15. Ne6 {[%clk 0:02:09]}  Bxe6 {[%clk 0:02:23]} 16. dxe6 {[%clk 0:02:10]}  Nc5 {[%clk 0:02:22]} 17. Qc2 {[%clk 0:02:09]}  Qe8 {[%clk 0:02:13]} 18. Nd5 {[%clk 0:02:02]}  Nxe6 {[%clk 0:02:10]} 19. Nxf6+ {[%clk 0:01:55]}  Rxf6 {[%clk 0:02:05]} 20. Bxb7 {[%clk 0:01:54]}  Nd4 {[%clk 0:01:57]} 21. Qd3 {[%clk 0:01:49]}  Rb8 {[%clk 0:01:56]} 22. Bd5+ {[%clk 0:01:49]}  Kh7 {[%clk 0:01:51]} 23. Bc3 {[%clk 0:01:29]}  Rf4 {[%clk 0:01:41]} 24. g3 {[%clk 0:01:25]}  e4 {[%clk 0:01:33]} 25. Qd1 {[%clk 0:01:14]}  Nf3+ {[%clk 0:01:31]} 26. Kf1 {[%clk 0:01:13]}  Rf8 {[%clk 0:01:28]} 27. Bxg7 {[%clk 0:01:10]}  Kxg7 {[%clk 0:01:29]} 28. Qe2 {[%clk 0:00:59]}  Qe5 {[%clk 0:01:25]} 29. Rb1 {[%clk 0:00:39]}  Nd2+ {[%clk 0:00:56]} 30. Kg2 {[%clk 0:00:29]}  Nxb1 {[%clk 0:00:52]} 31. Rxb1 {[%clk 0:00:29]}  Rbe8 {[%clk 0:00:51]} 32. Qe3 {[%clk 0:00:27]}  Rf3 {[%clk 0:00:49]} 33. Qa7 {[%clk 0:00:27]}  Re7 {[%clk 0:00:45]} 34. Qa8 {[%clk 0:00:11]}  Rf8 {[%clk 0:00:41]} 35. Qa7 {[%clk 0:00:11]}  e3 {[%clk 0:00:39]} 36. Qxe3 {[%clk 0:00:10]}  Qxe3 {[%clk 0:00:40]} 37. fxe3 {[%clk 0:00:09]}  Rxe3 {[%clk 0:00:41]} 38. a3 {[%clk 0:00:08]}  Re2+ {[%clk 0:00:41]} 39. Kg1 {[%clk 0:00:08]}  Rd2 {[%clk 0:00:38]} 40. b4 {[%clk 0:00:07]}  axb4 {[%clk 0:00:39]} 41. axb4 {[%clk 0:00:07]}  Rff2 {[%clk 0:00:36]} 42. b5 {[%clk 0:00:06]}  Rfe2 {[%clk 0:00:34]} 43. Rf1 {[%clk 0:00:05]}  g5 {[%clk 0:00:26]} 44. hxg5 {[%clk 0:00:02]}  Kg6 {[%clk 0:00:26]} 0-1


[Site "https://www.chess.com"]

[Event "Titled Tuesday Blitz July 20 2021"]
[White "Kilpatrick, Callum"]
[Black "Woodward, Andy"]
[WhiteFideId "414425"]
[BlackFideId "30953499"]
[WhiteElo "2481"]
[BlackElo "2137"]
[Result "0-1"]
[Round "06"]
[TimeControl "180+1"]
[Date "2021.07.21"]
[WhiteClock "0:00:24"]
[BlackClock "0:00:46"]

1. e4 {[%clk 0:02:58]}  c5 {[%clk 0:02:59]} 2. Nf3 {[%clk 0:02:58]}  d6 {[%clk 0:02:59]} 3. d4 {[%clk 0:02:58]}  cxd4 {[%clk 0:03:00]} 4. Nxd4 {[%clk 0:02:58]}  Nf6 {[%clk 0:03:01]} 5. Nc3 {[%clk 0:02:59]}  a6 {[%clk 0:03:01]} 6. h3 {[%clk 0:02:59]}  g6 {[%clk 0:03:00]} 7. g3 {[%clk 0:02:57]}  Bg7 {[%clk 0:03:00]} 8. Bg2 {[%clk 0:02:57]}  O-O {[%clk 0:03:00]} 9. O-O {[%clk 0:02:58]}  Nc6 {[%clk 0:03:00]} 10. Nxc6 {[%clk 0:02:56]}  bxc6 {[%clk 0:02:59]} 11. e5 {[%clk 0:02:56]}  dxe5 {[%clk 0:02:58]} 12. Qxd8 {[%clk 0:02:55]}  Rxd8 {[%clk 0:02:59]} 13. Bxc6 {[%clk 0:02:54]}  Rb8 {[%clk 0:02:59]} 14. Bg2 {[%clk 0:02:54]}  Be6 {[%clk 0:02:53]} 15. b3 {[%clk 0:02:48]}  Rbc8 {[%clk 0:02:51]} 16. Bb2 {[%clk 0:02:48]}  Rd2 {[%clk 0:02:51]} 17. Rac1 {[%clk 0:02:44]}  Bf5 {[%clk 0:02:42]} 18. Na4 {[%clk 0:02:33]}  Rcxc2 {[%clk 0:02:37]} 19. Bxe5 {[%clk 0:02:28]}  Rxc1 {[%clk 0:02:23]} 20. Rxc1 {[%clk 0:02:27]}  Rxa2 {[%clk 0:02:24]} 21. g4 {[%clk 0:02:24]}  Be6 {[%clk 0:02:19]} 22. Nc5 {[%clk 0:02:24]}  Re2 {[%clk 0:01:56]} 23. Nxe6 {[%clk 0:02:24]}  fxe6 {[%clk 0:01:50]} 24. Bd4 {[%clk 0:02:19]}  Nd5 {[%clk 0:01:40]} 25. Bf1 {[%clk 0:02:05]}  Ra2 {[%clk 0:01:32]} 26. Bxg7 {[%clk 0:01:55]}  Kxg7 {[%clk 0:01:33]} 27. Rc6 {[%clk 0:01:55]}  Nf4 {[%clk 0:01:22]} 28. h4 {[%clk 0:01:31]}  a5 {[%clk 0:01:19]} 29. Rc4 {[%clk 0:01:30]}  e5 {[%clk 0:01:16]} 30. Rc5 {[%clk 0:01:21]}  Kf6 {[%clk 0:01:15]} 31. Rc6+ {[%clk 0:01:18]}  e6 {[%clk 0:01:14]} 32. Rc8 {[%clk 0:01:16]}  h5 {[%clk 0:01:13]} 33. g5+ {[%clk 0:01:05]}  Kf5 {[%clk 0:01:11]} 34. f3 {[%clk 0:01:00]}  e4 {[%clk 0:01:00]} 35. Rf8+ {[%clk 0:00:45]}  Ke5 {[%clk 0:01:00]} 36. fxe4 {[%clk 0:00:45]}  Kxe4 {[%clk 0:01:01]} 37. Bc4 {[%clk 0:00:42]}  e5 {[%clk 0:00:51]} 38. Rf6 {[%clk 0:00:36]}  Kf3 {[%clk 0:00:48]} 39. Bf7 {[%clk 0:00:32]}  Kg3 {[%clk 0:00:46]} 40. Bxg6 {[%clk 0:00:24]}  Ra1+ {[%clk 0:00:45]} 41. Bb1 {[%clk 0:00:24]}  Rxb1# {[%clk 0:00:46]} 0-1


[Site "https://www.chess.com"]

[Event "Titled Tuesday Blitz July 20 2021"]
[White "Krivonosov, Oleg"]
[Black "davigator"]
[WhiteFideId "11600349"]
[WhiteElo "2469"]
[BlackElo "2421"]
[Result "1-0"]
[Round "06"]
[TimeControl "180+1"]
[Date "2021.07.21"]
[WhiteClock "0:00:11"]
[BlackClock "0:00:35"]

1. Nf3 {[%clk 0:03:00]}  d5 {[%clk 0:02:59]} 2. d4 {[%clk 0:03:00]}  c6 {[%clk 0:02:57]} 3. c4 {[%clk 0:03:00]}  Nf6 {[%clk 0:02:55]} 4. cxd5 {[%clk 0:03:00]}  cxd5 {[%clk 0:02:55]} 5. Nc3 {[%clk 0:03:00]}  Nc6 {[%clk 0:02:54]} 6. Bf4 {[%clk 0:03:00]}  Bf5 {[%clk 0:02:53]} 7. e3 {[%clk 0:02:59]}  a6 {[%clk 0:02:53]} 8. Rc1 {[%clk 0:02:57]}  Rc8 {[%clk 0:02:53]} 9. Be2 {[%clk 0:02:57]}  e6 {[%clk 0:02:52]} 10. O-O {[%clk 0:02:57]}  Be7 {[%clk 0:02:51]} 11. Qb3 {[%clk 0:02:53]}  Na5 {[%clk 0:02:51]} 12. Qa4+ {[%clk 0:02:52]}  Kf8 {[%clk 0:02:43]} 13. Ne5 {[%clk 0:02:20]}  b5 {[%clk 0:02:37]} 14. Nxb5 {[%clk 0:01:42]}  axb5 {[%clk 0:02:37]} 15. Qxb5 {[%clk 0:01:32]}  Nc4 {[%clk 0:02:20]} 16. Nxc4 {[%clk 0:01:21]}  dxc4 {[%clk 0:02:20]} 17. Rxc4 {[%clk 0:01:21]}  Rxc4 {[%clk 0:02:09]} 18. Bxc4 {[%clk 0:01:20]}  Qa8 {[%clk 0:02:03]} 19. Rc1 {[%clk 0:01:12]}  Nd5 {[%clk 0:02:00]} 20. Bxd5 {[%clk 0:01:08]}  exd5 {[%clk 0:02:00]} 21. Rc7 {[%clk 0:01:04]}  g5 {[%clk 0:01:45]} 22. Bg3 {[%clk 0:00:58]}  Bf6 {[%clk 0:01:36]} 23. h3 {[%clk 0:00:40]}  Kg7 {[%clk 0:01:33]} 24. a4 {[%clk 0:00:37]}  h5 {[%clk 0:01:24]} 25. Be5 {[%clk 0:00:22]}  Bxe5 {[%clk 0:01:24]} 26. dxe5 {[%clk 0:00:23]}  Be6 {[%clk 0:00:57]} 27. Qb6 {[%clk 0:00:19]}  Rh6 {[%clk 0:00:48]} 28. a5 {[%clk 0:00:13]}  Bxh3 {[%clk 0:00:48]} 29. Rxf7+ {[%clk 0:00:13]}  Kxf7 {[%clk 0:00:45]} 30. Qxh6 {[%clk 0:00:13]}  Bg4 {[%clk 0:00:38]} 31. Qf6+ {[%clk 0:00:12]}  Ke8 {[%clk 0:00:35]} 32. Qh8+ {[%clk 0:00:12]}  Ke7 {[%clk 0:00:34]} 33. Qxa8 {[%clk 0:00:12]}  Ke6 {[%clk 0:00:35]} 34. a6 {[%clk 0:00:12]}  Kxe5 {[%clk 0:00:35]} 35. a7 {[%clk 0:00:12]}  d4 {[%clk 0:00:35]} 36. Qb8+ {[%clk 0:00:11]}  Ke4 {[%clk 0:00:35]} 37. a8=Q+ {[%clk 0:00:11]} 1-0


[Site "https://www.chess.com"]

[Event "Titled Tuesday Blitz July 20 2021"]
[White "Lazavik, Denis"]
[Black "Nakamura, Hikaru"]
[WhiteFideId "13515110"]
[BlackFideId "2016192"]
[WhiteElo "2436"]
[BlackElo "2900"]
[Result "1/2-1/2"]
[Round "06"]
[TimeControl "180+1"]
[Date "2021.07.20"]
[WhiteClock "0:00:11"]
[BlackClock "0:00:36"]

1. d4 {[%clk 0:03:00]}  Nf6 {[%clk 0:02:56]} 2. c4 {[%clk 0:03:00]}  e6 {[%clk 0:02:56]} 3. Nf3 {[%clk 0:03:00]}  d5 {[%clk 0:02:56]} 4. Nc3 {[%clk 0:03:00]}  Be7 {[%clk 0:02:56]} 5. Bg5 {[%clk 0:03:00]}  h6 {[%clk 0:02:57]} 6. Bxf6 {[%clk 0:03:00]}  Bxf6 {[%clk 0:02:57]} 7. e3 {[%clk 0:03:00]}  O-O {[%clk 0:02:55]} 8. Rc1 {[%clk 0:03:00]}  dxc4 {[%clk 0:02:50]} 9. Bxc4 {[%clk 0:03:00]}  c5 {[%clk 0:02:51]} 10. dxc5 {[%clk 0:02:47]}  Nd7 {[%clk 0:02:49]} 11. c6 {[%clk 0:02:43]}  bxc6 {[%clk 0:02:49]} 12. O-O {[%clk 0:02:43]}  Nb6 {[%clk 0:02:43]} 13. Bd3 {[%clk 0:02:36]}  Nd5 {[%clk 0:02:37]} 14. Na4 {[%clk 0:02:32]}  Nb4 {[%clk 0:02:33]} 15. Bc4 {[%clk 0:02:23]}  Rb8 {[%clk 0:02:33]} 16. a3 {[%clk 0:02:21]}  Nd5 {[%clk 0:02:32]} 17. Qc2 {[%clk 0:02:03]}  Nb6 {[%clk 0:02:27]} 18. b4 {[%clk 0:02:01]}  Nxa4 {[%clk 0:02:24]} 19. Qxa4 {[%clk 0:02:01]}  Qb6 {[%clk 0:02:24]} 20. Rfd1 {[%clk 0:01:57]}  Bb7 {[%clk 0:02:20]} 21. Nd2 {[%clk 0:01:50]}  Be7 {[%clk 0:02:00]} 22. Bf1 {[%clk 0:01:31]}  c5 {[%clk 0:01:38]} 23. Nc4 {[%clk 0:01:26]}  Qc7 {[%clk 0:01:37]} 24. Qxa7 {[%clk 0:01:08]}  cxb4 {[%clk 0:01:16]} 25. Na5 {[%clk 0:00:54]}  Qe5 {[%clk 0:01:16]} 26. Nxb7 {[%clk 0:00:50]}  Ra8 {[%clk 0:01:15]} 27. Qb6 {[%clk 0:00:45]}  bxa3 {[%clk 0:01:12]} 28. Nc5 {[%clk 0:00:32]}  Rfb8 {[%clk 0:01:04]} 29. Qc6 {[%clk 0:00:26]}  Rc8 {[%clk 0:01:03]} 30. Nd3 {[%clk 0:00:13]}  Rxc6 {[%clk 0:00:48]} 31. Nxe5 {[%clk 0:00:13]}  Rxc1 {[%clk 0:00:47]} 32. Rxc1 {[%clk 0:00:14]}  Bb4 {[%clk 0:00:47]} 33. Bc4 {[%clk 0:00:10]}  a2 {[%clk 0:00:36]} 34. Ra1 {[%clk 0:00:10]}  Bc3 {[%clk 0:00:34]} 35. Rxa2 {[%clk 0:00:10]}  Rxa2 {[%clk 0:00:35]} 36. Bxa2 {[%clk 0:00:11]}  Bxe5 {[%clk 0:00:36]} 37. g3 {[%clk 0:00:11]} 1/2-1/2


[Site "https://www.chess.com"]

[Event "Titled Tuesday Blitz July 20 2021"]
[White "Ljukin, Sergei"]
[Black "De Silva, L M S T"]
[WhiteFideId "14102200"]
[BlackFideId "9953698"]
[WhiteElo "2309"]
[BlackElo "1621"]
[Result "0-1"]
[Round "06"]
[TimeControl "180+1"]
[Date "2021.07.21"]
[WhiteClock "0:01:15"]
[BlackClock "0:01:19"]

1. e4 {[%clk 0:03:00]}  e5 {[%clk 0:03:00]} 2. Nf3 {[%clk 0:03:00]}  Nc6 {[%clk 0:03:00]} 3. Bb5 {[%clk 0:03:00]}  a6 {[%clk 0:03:01]} 4. Ba4 {[%clk 0:03:00]}  Nf6 {[%clk 0:03:01]} 5. Qe2 {[%clk 0:02:59]}  b5 {[%clk 0:03:00]} 6. Bb3 {[%clk 0:02:59]}  Be7 {[%clk 0:03:01]} 7. c3 {[%clk 0:02:59]}  d6 {[%clk 0:03:01]} 8. O-O {[%clk 0:02:58]}  O-O {[%clk 0:03:01]} 9. d4 {[%clk 0:02:57]}  Bg4 {[%clk 0:03:01]} 10. Rd1 {[%clk 0:02:57]}  Qc8 {[%clk 0:02:59]} 11. a4 {[%clk 0:02:55]}  b4 {[%clk 0:02:58]} 12. a5 {[%clk 0:02:55]}  h6 {[%clk 0:02:52]} 13. d5 {[%clk 0:02:52]}  Nb8 {[%clk 0:02:50]} 14. cxb4 {[%clk 0:02:52]}  Nbd7 {[%clk 0:02:42]} 15. Nc3 {[%clk 0:02:43]}  Nh7 {[%clk 0:02:40]} 16. h3 {[%clk 0:02:38]}  Bh5 {[%clk 0:02:40]} 17. g4 {[%clk 0:02:38]}  Bg6 {[%clk 0:02:40]} 18. Ba4 {[%clk 0:02:31]}  Ndf6 {[%clk 0:02:37]} 19. Bc6 {[%clk 0:02:26]}  Rb8 {[%clk 0:02:32]} 20. b5 {[%clk 0:02:25]}  Nxg4 {[%clk 0:02:29]} 21. hxg4 {[%clk 0:02:24]}  Qxg4+ {[%clk 0:02:30]} 22. Kf1 {[%clk 0:02:22]}  Qh3+ {[%clk 0:02:28]} 23. Ke1 {[%clk 0:02:21]}  Bh5 {[%clk 0:02:27]} 24. Rd3 {[%clk 0:02:18]}  f5 {[%clk 0:02:14]} 25. Bd7 {[%clk 0:02:11]}  Qh1+ {[%clk 0:02:09]} 26. Qf1 {[%clk 0:02:11]}  Qxf1+ {[%clk 0:02:07]} 27. Kxf1 {[%clk 0:02:10]}  fxe4 {[%clk 0:02:08]} 28. Nxe4 {[%clk 0:02:10]}  Bxf3 {[%clk 0:02:07]} 29. Nc3 {[%clk 0:02:08]}  Bh4 {[%clk 0:01:56]} 30. bxa6 {[%clk 0:01:46]}  Ng5 {[%clk 0:01:46]} 31. Bxg5 {[%clk 0:01:42]}  hxg5 {[%clk 0:01:44]} 32. Bc6 {[%clk 0:01:41]}  Rxb2 {[%clk 0:01:42]} 33. Ra2 {[%clk 0:01:35]}  Be2+ {[%clk 0:01:38]} 34. Nxe2 {[%clk 0:01:20]}  Rxf2+ {[%clk 0:01:22]} 35. Kg1 {[%clk 0:01:15]}  Rb1+ {[%clk 0:01:19]} 0-1


[Site "https://www.chess.com"]

[Event "Titled Tuesday Blitz July 20 2021"]
[White "Locci, Damiano"]
[Black "Maltsevskaya, Aleksandra"]
[WhiteFideId "819751"]
[BlackFideId "24174041"]
[WhiteElo "2436"]
[BlackElo "2225"]
[Result "1-0"]
[Round "06"]
[TimeControl "180+1"]
[Date "2021.07.21"]
[WhiteClock "0:00:08"]
[BlackClock "0:00:16"]

1. c4 {[%clk 0:03:00]}  c5 {[%clk 0:02:51]} 2. Nf3 {[%clk 0:03:00]}  Nc6 {[%clk 0:02:51]} 3. d4 {[%clk 0:03:00]}  cxd4 {[%clk 0:02:51]} 4. Nxd4 {[%clk 0:03:01]}  Nf6 {[%clk 0:02:51]} 5. Nc3 {[%clk 0:03:01]}  g6 {[%clk 0:02:48]} 6. e4 {[%clk 0:03:00]}  d6 {[%clk 0:02:47]} 7. Be2 {[%clk 0:03:00]}  Bg7 {[%clk 0:02:47]} 8. O-O {[%clk 0:02:59]}  O-O {[%clk 0:02:47]} 9. Nc2 {[%clk 0:02:56]}  Be6 {[%clk 0:02:45]} 10. Be3 {[%clk 0:02:49]}  Rc8 {[%clk 0:02:45]} 11. f3 {[%clk 0:02:48]}  a6 {[%clk 0:02:43]} 12. Rc1 {[%clk 0:02:47]}  Qa5 {[%clk 0:02:41]} 13. a3 {[%clk 0:02:41]}  Ne5 {[%clk 0:02:32]} 14. Nd5 {[%clk 0:02:18]}  Bxd5 {[%clk 0:02:27]} 15. cxd5 {[%clk 0:02:19]}  b5 {[%clk 0:02:22]} 16. Nb4 {[%clk 0:02:14]}  Nfd7 {[%clk 0:02:20]} 17. Nc6 {[%clk 0:01:28]}  Nxc6 {[%clk 0:02:19]} 18. dxc6 {[%clk 0:01:29]}  Ne5 {[%clk 0:02:19]} 19. Qd5 {[%clk 0:01:19]}  Qc7 {[%clk 0:01:45]} 20. a4 {[%clk 0:01:17]}  e6 {[%clk 0:01:42]} 21. Qb3 {[%clk 0:01:12]}  bxa4 {[%clk 0:01:41]} 22. Qxa4 {[%clk 0:01:12]}  Ra8 {[%clk 0:01:36]} 23. f4 {[%clk 0:01:00]}  Rfb8 {[%clk 0:01:24]} 24. fxe5 {[%clk 0:00:59]}  Rxb2 {[%clk 0:01:24]} 25. exd6 {[%clk 0:00:54]}  Qxd6 {[%clk 0:01:25]} 26. Bf3 {[%clk 0:00:51]}  Be5 {[%clk 0:01:11]} 27. c7 {[%clk 0:00:36]}  Rc8 {[%clk 0:00:51]} 28. Rfd1 {[%clk 0:00:19]}  Qe7 {[%clk 0:00:50]} 29. Qd7 {[%clk 0:00:15]}  Qxd7 {[%clk 0:00:27]} 30. Rxd7 {[%clk 0:00:16]}  Kg7 {[%clk 0:00:28]} 31. Rd8 {[%clk 0:00:09]}  Rxc7 {[%clk 0:00:20]} 32. Rxc7 {[%clk 0:00:09]}  Bxc7 {[%clk 0:00:20]} 33. Bd4+ {[%clk 0:00:09]}  f6 {[%clk 0:00:16]} 34. Rd7+ {[%clk 0:00:08]} 1-0


[Site "https://www.chess.com"]

[Event "Titled Tuesday Blitz July 20 2021"]
[White "Mestnikov, Aisen"]
[Black "Manukyan, Artyom"]
[WhiteFideId "34130117"]
[BlackFideId "13305786"]
[WhiteElo "2027"]
[BlackElo "2034"]
[Result "1/2-1/2"]
[Round "06"]
[TimeControl "180+1"]
[Date "2021.07.21"]
[WhiteClock "0:01:09"]
[BlackClock "0:01:30"]

1. d4 {[%clk 0:03:00]}  d5 {[%clk 0:02:53]} 2. c4 {[%clk 0:03:00]}  e6 {[%clk 0:02:53]} 3. Nf3 {[%clk 0:03:00]}  Nf6 {[%clk 0:02:54]} 4. g3 {[%clk 0:03:00]}  Be7 {[%clk 0:02:53]} 5. Bg2 {[%clk 0:03:01]}  O-O {[%clk 0:02:54]} 6. O-O {[%clk 0:03:01]}  dxc4 {[%clk 0:02:54]} 7. Ne5 {[%clk 0:03:01]}  Nc6 {[%clk 0:02:54]} 8. Bxc6 {[%clk 0:03:01]}  bxc6 {[%clk 0:02:55]} 9. Nxc6 {[%clk 0:03:01]}  Qe8 {[%clk 0:02:55]} 10. Nxe7+ {[%clk 0:03:01]}  Qxe7 {[%clk 0:02:56]} 11. Qa4 {[%clk 0:03:01]}  e5 {[%clk 0:02:57]} 12. dxe5 {[%clk 0:02:57]}  Qxe5 {[%clk 0:02:57]} 13. Nc3 {[%clk 0:02:56]}  Be6 {[%clk 0:02:56]} 14. Bf4 {[%clk 0:02:54]}  Qh5 {[%clk 0:02:53]} 15. Qb5 {[%clk 0:02:53]}  Qxb5 {[%clk 0:02:48]} 16. Nxb5 {[%clk 0:02:53]}  Rab8 {[%clk 0:02:49]} 17. a4 {[%clk 0:02:38]}  a6 {[%clk 0:02:48]} 18. Nxc7 {[%clk 0:02:32]}  Rxb2 {[%clk 0:02:49]} 19. Nxa6 {[%clk 0:02:27]}  Rxe2 {[%clk 0:02:43]} 20. Nc7 {[%clk 0:02:02]}  Nd5 {[%clk 0:02:26]} 21. a5 {[%clk 0:01:45]}  Nxc7 {[%clk 0:02:09]} 22. Bxc7 {[%clk 0:01:46]}  Rc8 {[%clk 0:02:08]} 23. a6 {[%clk 0:01:46]}  h5 {[%clk 0:02:04]} 24. a7 {[%clk 0:01:44]}  Bd5 {[%clk 0:02:04]} 25. Bb8 {[%clk 0:01:44]}  Ba8 {[%clk 0:02:04]} 26. Rfe1 {[%clk 0:01:36]}  Rb2 {[%clk 0:01:55]} 27. Rac1 {[%clk 0:01:27]}  c3 {[%clk 0:01:47]} 28. Be5 {[%clk 0:01:24]}  Ra2 {[%clk 0:01:36]} 29. Rxc3 {[%clk 0:01:21]}  Rxc3 {[%clk 0:01:35]} 30. Bxc3 {[%clk 0:01:22]}  Rxa7 {[%clk 0:01:36]} 31. Ra1 {[%clk 0:01:08]}  Rxa1+ {[%clk 0:01:30]} 32. Bxa1 {[%clk 0:01:09]}  Bf3 {[%clk 0:01:30]} 1/2-1/2


[Site "https://www.chess.com"]